bitfinex/quotes_BTCUSD_20230115
["timestamp","ask_amount","ask_price","bid_price","bid_amount"]
[1673746603819,0.19072595,20728.0,20726.0,0.39222691]
[1673746604485,0.5618,20730.0,20726.0,0.39222691]
[1673746604722,0.5618,20730.0,20726.0,0.48422691]
[1673746604723,0.75252595,20730.0,20726.0,0.48422691]
[1673746604945,0.75252595,20730.0,20726.0,0.39222691]
[1673746605161,0.75252595,20730.0,20726.0,0.48422691]
[1673746605386,0.75252595,20730.0,20726.0,0.39222691]
[1673746605610,0.5618,20730.0,20726.0,0.48422691]
[1673746605825,0.5618,20730.0,20726.0,0.60376837]
[1673746606126,0.19072595,20729.0,20726.0,0.092]
[1673746606306,0.0794,20727.0,20726.0,0.092]
[1673746606532,0.561862,20727.0,20726.0,0.092]
[1673746606749,0.876742,20727.0,20726.0,0.092]
[1673746606982,0.876742,20727.0,20723.0,0.35639416]
[1673746607193,0.0794,20726.0,20723.0,0.35639416]
[1673746607412,0.27012595,20726.0,20724.0,0.49327123]
[1673746607669,0.0794,20726.0,20724.0,0.49327123]
[1673746608723,0.0804,20726.0,20724.0,0.49327123]
[1673746608727,0.0794,20726.0,20724.0,0.49327123]
[1673746608974,0.0804,20726.0,20724.0,0.085]
[1673746609482,0.001,20726.0,20724.0,0.085]
[1673746609980,0.001,20726.0,20724.0,0.68706446]
[1673746610231,0.001,20726.0,20725.0,0.220406]
[1673746610702,0.001,20726.0,20724.0,0.567523]
[1673746610951,0.001,20726.0,20725.0,0.482509]
[1673746611215,0.26242044,20728.0,20725.0,0.482509]
[1673746611463,0.001,20726.0,20725.0,0.567509]
[1673746611711,0.26242044,20728.0,20726.0,0.45098871]
[1673746612223,1.6804437,20743.0,20727.0,0.11954146]
[1673746612224,0.5029,20732.0,20727.0,0.11954146]
[1673746612474,0.21880401,20732.0,20728.0,0.11954146]
[1673746612731,0.21880401,20732.0,20729.0,0.11954146]
[1673746612981,0.21880401,20732.0,20729.0,0.60194546]
[1673746613482,0.22680401,20732.0,20729.0,0.60194546]
[1673746613743,0.22680401,20732.0,20729.0,0.482404]
[1673746613744,0.21880401,20732.0,20729.0,0.482404]
[1673746614006,0.007,20732.0,20729.0,0.60794546]
[1673746614254,0.007,20732.0,20729.0,0.488404]
[1673746614510,0.007,20732.0,20730.0,0.6881594]
[1673746614765,0.007,20732.0,20731.0,0.582369]
[1673746615029,0.007,20732.0,20731.0,0.802694]
[1673746615534,0.007,20732.0,20731.0,0.702694]
[1673746615782,0.31978454,20734.0,20730.0,0.9503034]
[1673746615783,0.25839332,20733.0,20730.0,0.9503034]
[1673746616043,0.26233677,20732.0,20730.0,1.5176944]
[1673746616301,0.26233677,20732.0,20730.0,1.4326944]
[1673746616547,0.26333677,20732.0,20731.0,0.086]
[1673746616796,0.01056605,20734.0,20730.0,1.4326944]
[1673746617045,0.23806977,20733.0,20731.0,0.4704421]
[1673746617302,0.23706977,20733.0,20731.0,0.4704421]
[1673746617560,0.001,20732.0,20731.0,0.4704421]
[1673746618567,0.01056605,20734.0,20731.0,1.19665263]
[1673746618829,0.01156605,20734.0,20731.0,0.70191046]
[1673746619112,0.01156605,20734.0,20732.0,0.67122573]
[1673746619362,0.01156605,20734.0,20732.0,0.85384373]
[1673746619640,0.22898914,20734.0,20731.0,0.482369]
[1673746619901,0.22898914,20734.0,20730.0,0.37938642]
[1673746619902,0.25766073,20733.0,20730.0,0.37938642]
[1673746620129,0.52738668,20733.0,20730.0,0.37938642]
[1673746620640,0.35201998,20733.0,20732.0,0.058]
[1673746621148,0.01535925,20733.0,20732.0,0.53381609]
[1673746621408,0.01535925,20733.0,20732.0,0.47581609]
[1673746621661,0.01635925,20733.0,20732.0,0.47581609]
[1673746621914,0.01535925,20733.0,20732.0,0.47581609]
[1673746622165,0.01535925,20733.0,20732.0,0.53381609]
[1673746622438,0.01535925,20733.0,20732.0,0.058]
[1673746622694,0.31833361,20733.0,20732.0,0.058]
[1673746625768,0.63321361,20733.0,20732.0,0.058]
[1673746626045,0.31833361,20733.0,20732.0,0.058]
[1673746628828,0.63321361,20733.0,20732.0,0.058]
[1673746629604,0.31833361,20733.0,20732.0,0.058]
[1673746630573,0.01535925,20733.0,20732.0,0.058]
[1673746630827,0.01535925,20733.0,20732.0,0.52938381]
[1673746634958,0.01535925,20733.0,20732.0,0.65474315]
[1673746635235,0.01528872,20733.0,20732.0,1.68908744]
[1673746635482,0.01528872,20733.0,20732.0,1.76709905]
[1673746635740,0.01056605,20734.0,20733.0,0.02970949]
[1673746636274,0.01056605,20734.0,20733.0,0.73464718]
[1673746636538,0.01056605,20734.0,20733.0,0.71697749]
[1673746637061,0.01056605,20734.0,20733.0,2.30976904]
[1673746637313,0.01056605,20734.0,20733.0,2.75456717]
[1673746637579,0.01056605,20734.0,20733.0,2.24896226]
[1673746637836,0.01056605,20734.0,20733.0,2.62987935]
[1673746638092,0.01056605,20734.0,20733.0,2.84589202]
[1673746639680,0.01056605,20734.0,20733.0,2.62987935]
[1673746639923,0.01056605,20734.0,20733.0,1.88079934]
[1673746640187,0.01056605,20734.0,20733.0,1.31877931]
[1673746640443,0.01056605,20734.0,20733.0,1.17482171]
[1673746643203,0.01056605,20734.0,20733.0,1.20897749]
[1673746643956,0.01056605,20734.0,20733.0,1.65617857]
[1673746644235,0.01056605,20734.0,20733.0,1.55617857]
[1673746644725,0.01056605,20734.0,20733.0,1.10887963]
[1673746644977,0.01056605,20734.0,20733.0,1.24137852]
[1673746647826,0.01056605,20734.0,20733.0,0.10626163]
[1673746647827,0.50843289,20734.0,20733.0,0.10626163]
[1673746648121,0.25396694,20734.0,20733.0,0.10626163]
[1673746649153,0.56884694,20734.0,20733.0,0.10626163]
[1673746649433,0.25396694,20734.0,20733.0,0.10626163]
[1673746649919,0.25417694,20734.0,20733.0,0.10626163]
[1673746650172,1.13035594,20734.0,20733.0,0.10626163]
[1673746650721,1.12035594,20734.0,20733.0,0.10626163]
[1673746651202,1.12035594,20734.0,20733.0,0.01426163]
[1673746651462,1.12935594,20734.0,20733.0,0.01426163]
[1673746652243,0.56805694,20734.0,20733.0,0.01426163]
[1673746652495,0.00977605,20734.0,20733.0,0.07457163]
[1673746652754,0.00977605,20734.0,20733.0,0.427115]
[1673746652755,0.02320677,20734.0,20733.0,0.427115]
[1673746653786,0.32701727,20734.0,20733.0,0.01426163]
[1673746654062,0.31801727,20734.0,20733.0,0.01426163]
[1673746654331,0.31901727,20734.0,20733.0,0.09826163]
[1673746658588,0.01520677,20734.0,20733.0,0.09826163]
[1673746658838,0.01520677,20734.0,20733.0,0.58022758]
[1673746659085,0.01520677,20734.0,20733.0,0.46068612]
[1673746665177,0.01520677,20734.0,20733.0,0.09826163]
[1673746665178,0.37637385,20734.0,20733.0,0.09826163]
[1673746665695,0.31263385,20734.0,20733.0,0.09826163]
[1673746666203,0.62751385,20734.0,20733.0,0.09826163]
[1673746667715,0.31263385,20734.0,20733.0,0.09826163]
[1673746672065,0.01092208,20735.0,20733.0,0.99500478]
[1673746672348,0.2276475,20737.0,20734.0,1.13814815]
[1673746672349,0.29982805,20737.0,20734.0,1.13814815]
[1673746672615,0.01108043,20737.0,20735.0,2.64357115]
[1673746672878,0.01108043,20737.0,20736.0,1.65485606]
[1673746673152,0.01108043,20738.0,20737.0,0.13402341]
[1673746673419,0.01108043,20738.0,20737.0,3.70243944]
[1673746673696,0.01108043,20738.0,20737.0,3.99481409]
[1673746673954,0.01108043,20738.0,20737.0,3.69481409]
[1673746674213,0.01108043,20738.0,20737.0,3.8589736]
[1673746674469,0.01108043,20738.0,20737.0,2.8103275]
[1673746674787,0.01108043,20738.0,20737.0,3.59359925]
[1673746675074,0.01108043,20738.0,20737.0,2.8103275]
[1673746675326,0.01108043,20738.0,20737.0,3.11879335]
[1673746675588,0.01108043,20738.0,20737.0,3.5413878]
[1673746675839,0.01108043,20738.0,20737.0,4.12992309]
[1673746676093,0.01108043,20738.0,20737.0,3.82151724]
[1673746676350,4.3e-07,20738.0,20737.0,3.91351724]
[1673746676626,0.01212875,20741.0,20738.0,0.12866202]
[1673746676884,0.01212875,20741.0,20740.0,0.43955178]
[1673746677138,0.01212875,20741.0,20740.0,2.22761747]
[1673746677419,0.01212875,20741.0,20740.0,2.0115264]
[1673746677784,0.01212875,20741.0,20740.0,1.7115264]
[1673746678025,0.01212875,20741.0,20740.0,1.56746569]
[1673746678262,0.01212875,20741.0,20740.0,1.65946569]
[1673746678782,0.01212875,20741.0,20740.0,0.88321844]
[1673746679057,0.01212875,20741.0,20740.0,1.26923331]
[1673746679294,0.01212875,20741.0,20740.0,1.26073331]
[1673746679542,0.01212875,20741.0,20740.0,0.77857331]
[1673746680311,0.01212875,20741.0,20740.0,0.77863331]
[1673746681247,0.01212875,20741.0,20740.0,0.57511444]
[1673746681491,0.01212875,20741.0,20740.0,1.20381644]
[1673746681744,0.01212875,20741.0,20740.0,1.75961813]
[1673746681987,0.01212875,20741.0,20740.0,2.05961813]
[1673746682247,0.01212875,20741.0,20740.0,2.20367884]
[1673746682498,0.01212875,20741.0,20740.0,1.80367884]
[1673746682751,0.01212875,20741.0,20740.0,2.1389593]
[1673746683001,0.01212875,20741.0,20740.0,2.15910985]
[1673746684011,0.01212875,20741.0,20740.0,1.65961813]
[1673746684259,0.01212875,20741.0,20740.0,1.86171585]
[1673746684511,0.01212875,20741.0,20740.0,1.30591416]
[1673746684765,0.01212875,20741.0,20740.0,1.29741416]
[1673746685048,0.01212875,20741.0,20740.0,1.59741416]
[1673746685288,0.01212875,20741.0,20740.0,1.69205959]
[1673746685564,0.01212875,20741.0,20740.0,2.13387813]
[1673746686023,0.01212875,20741.0,20740.0,2.14237813]
[1673746690056,0.01212875,20741.0,20740.0,2.44237813]
[1673746691068,0.01225818,20742.0,20741.0,0.0070048]
[1673746691278,0.01225818,20742.0,20741.0,1.77769249]
[1673746691605,0.01225818,20742.0,20741.0,1.99788049]
[1673746692318,0.01225818,20742.0,20741.0,2.08988049]
[1673746693102,0.00337427,20745.0,20743.0,0.02096139]
[1673746693361,0.00337427,20745.0,20744.0,1.446201]
[1673746693645,0.00337427,20745.0,20744.0,1.96635]
[1673746693893,0.00337427,20745.0,20744.0,2.45205169]
[1673746694148,0.00337427,20745.0,20744.0,2.87168677]
[1673746694403,0.00337427,20745.0,20744.0,2.08598508]
[1673746694650,0.00337427,20745.0,20744.0,2.38598508]
[1673746695414,0.00337427,20745.0,20744.0,2.45205169]
[1673746696174,0.00337427,20745.0,20744.0,2.54505169]
[1673746696425,0.00337427,20745.0,20744.0,2.92445169]
[1673746697443,0.00337427,20745.0,20744.0,2.91085169]
[1673746697691,0.00337427,20745.0,20744.0,3.00285169]
[1673746697943,0.00337427,20745.0,20744.0,2.91085169]
[1673746698478,0.00337427,20745.0,20744.0,2.91091169]
[1673746698992,0.00337427,20745.0,20744.0,3.00291169]
[1673746699245,0.00337427,20745.0,20744.0,2.32351169]
[1673746700262,0.00337427,20745.0,20744.0,2.62351169]
[1673746700514,0.00337427,20745.0,20744.0,2.69291169]
[1673746700791,0.00337427,20745.0,20744.0,2.99291169]
[1673746701085,0.00337427,20745.0,20744.0,2.69291169]
[1673746701334,0.00337427,20745.0,20744.0,0.9879026]
[1673746701588,0.00337427,20745.0,20744.0,0.66993943]
[1673746703102,0.00337427,20745.0,20744.0,0.67843943]
[1673746704101,0.00337427,20745.0,20744.0,1.65931769]
[1673746704850,0.00337427,20745.0,20744.0,2.44138469]
[1673746706119,0.01320051,20750.0,20745.0,0.00186755]
[1673746706379,0.01320051,20750.0,20746.0,2.00266169]
[1673746706633,0.01320051,20750.0,20746.0,2.62303146]
[1673746706873,0.01320051,20750.0,20746.0,2.92303146]
[1673746707388,0.01320051,20750.0,20746.0,2.50628369]
[1673746707664,0.01320051,20750.0,20746.0,3.00603716]
[1673746708288,0.01320051,20750.0,20746.0,3.09803716]
[1673746708454,0.01320051,20750.0,20746.0,2.99419594]
[1673746708713,0.28384558,20750.0,20746.0,2.99419594]
[1673746708971,0.26597497,20749.0,20746.0,2.24199425]
[1673746709178,0.24165733,20748.0,20746.0,0.79593425]
[1673746709472,0.01320051,20750.0,20746.0,0.79593425]
[1673746709718,0.25716789,20749.0,20746.0,0.79593425]
[1673746710719,0.27211709,20748.0,20746.0,0.79593425]
[1673746710970,0.27211709,20748.0,20746.0,0.312121]
[1673746711237,0.27211709,20748.0,20746.0,0.092]
[1673746711793,0.27211709,20748.0,20746.0,0.312181]
[1673746712055,0.27211709,20748.0,20746.0,0.09206]
[1673746712292,0.27211709,20748.0,20746.0,0.312181]
[1673746712787,0.02757134,20747.0,20746.0,0.312181]
[1673746713798,0.02757134,20747.0,20746.0,0.68996044]
[1673746715539,0.02757134,20747.0,20746.0,0.83354303]
[1673746716041,0.02757134,20747.0,20746.0,0.68996044]
[1673746716549,0.02757134,20747.0,20746.0,0.83354303]
[1673746716796,0.02757134,20747.0,20746.0,0.68990044]
[1673746717303,0.02757134,20747.0,20746.0,0.46977944]
[1673746717567,0.01757134,20747.0,20746.0,0.46977944]
[1673746717821,0.01757134,20747.0,20746.0,0.092]
[1673746717822,1.76337429,20747.0,20746.0,0.092]
[1673746718071,1.26639088,20747.0,20746.0,0.092]
[1673746718317,1.18699088,20747.0,20746.0,0.092]
[1673746718575,0.87211088,20747.0,20745.0,0.00192755]
[1673746718815,0.79431088,20747.0,20746.0,0.085]
[1673746719098,0.39071388,20747.0,20745.0,0.00192755]
[1673746719346,0.41231388,20747.0,20746.0,0.086]
[1673746719596,0.80659388,20747.0,20746.0,0.086]
[1673746720095,0.76884935,20747.0,20745.0,0.00192755]
[1673746720346,0.1794,20746.0,20745.0,0.08792755]
[1673746720597,0.49428,20746.0,20745.0,0.00192755]
[1673746721111,0.39428,20746.0,20745.0,0.00192755]
[1673746721359,0.39528,20746.0,20745.0,0.08792755]
[1673746721608,0.09576959,20746.0,20745.0,0.08792755]
[1673746722379,0.64475758,20746.0,20745.0,0.08792755]
[1673746723373,0.64375758,20746.0,20745.0,0.08792755]
[1673746723647,0.32987758,20746.0,20745.0,0.00192755]
[1673746723895,0.49104959,20746.0,20745.0,0.08792755]
[1673746724158,0.70561666,20746.0,20745.0,0.00192755]
[1673746724414,1.33201047,20746.0,20745.0,0.00192755]
[1673746724664,1.43301047,20746.0,20745.0,0.00192755]
[1673746724912,1.33301047,20746.0,20745.0,0.06092755]
[1673746725167,1.33301047,20746.0,20745.0,0.00192755]
[1673746725168,1.33201047,20746.0,20745.0,0.00192755]
[1673746725420,1.73201047,20746.0,20745.0,0.00192755]
[1673746725689,1.73181246,20746.0,20745.0,0.00192755]
[1673746725944,1.87638428,20746.0,20745.0,0.00192755]
[1673746726199,1.87638428,20746.0,20745.0,0.06092755]
[1673746726200,1.58763666,20746.0,20745.0,0.06092755]
[1673746726450,1.58763666,20746.0,20745.0,0.00192755]
[1673746726700,1.58763666,20746.0,20745.0,0.00792755]
[1673746726951,1.88338428,20746.0,20745.0,0.00792755]
[1673746727196,1.56681721,20746.0,20745.0,0.00792755]
[1673746727445,1.78299175,20746.0,20745.0,0.00792755]
[1673746727706,2.23242828,20746.0,20745.0,0.00792755]
[1673746727953,2.39060573,20746.0,20745.0,0.00192755]
[1673746728205,2.39060573,20746.0,20745.0,0.00892755]
[1673746728206,2.99940573,20746.0,20745.0,0.00892755]
[1673746728458,2.99940573,20746.0,20745.0,0.00702755]
[1673746728459,2.63847811,20746.0,20745.0,0.00702755]
[1673746728722,3.11258028,20746.0,20745.0,0.00512755]
[1673746728966,2.63847811,20746.0,20745.0,0.00512755]
[1673746729485,2.99855915,20746.0,20745.0,0.00512755]
[1673746730470,2.39855915,20746.0,20745.0,0.00512755]
[1673746730728,2.99855915,20746.0,20745.0,0.00512755]
[1673746730985,3.28659202,20746.0,20745.0,0.00512755]
[1673746731484,3.34389767,20746.0,20745.0,0.00512755]
[1673746731755,3.47243491,20746.0,20745.0,0.00512755]
[1673746732523,3.84707118,20746.0,20739.0,0.00058055]
[1673746732778,0.1588,20740.0,20739.0,0.00058055]
[1673746733025,1.62872595,20740.0,20739.0,0.00058055]
[1673746733536,1.438,20740.0,20739.0,0.00058055]
[1673746734321,1.439,20740.0,20739.0,0.07858055]
[1673746736125,1.739,20740.0,20739.0,0.07858055]
[1673746736898,2.039,20740.0,20739.0,0.05956775]
[1673746737143,2.35389474,20740.0,20739.0,0.05956775]
[1673746737396,2.65619474,20740.0,20739.0,0.05956775]
[1673746738222,1.62194201,20740.0,20739.0,0.05956775]
[1673746738888,1.62094201,20740.0,20737.0,0.0065641]
[1673746739135,1.22916201,20740.0,20739.0,0.055]
[1673746739350,1.62044201,20740.0,20737.0,0.0065641]
[1673746739492,0.0788,20739.0,20737.0,0.0065641]
[1673746739709,0.31488,20738.0,20737.0,0.0065641]
[1673746740148,0.83773964,20739.0,20737.0,0.0065641]
[1673746740538,0.31488,20738.0,20737.0,0.0065641]
[1673746740788,0.31788,20738.0,20737.0,0.0615641]
[1673746741073,0.31488,20738.0,20737.0,0.0065641]
[1673746741351,0.003,20739.0,20737.0,1.24745644]
[1673746741616,0.27946278,20742.0,20737.0,0.97136306]
[1673746741875,0.003,20738.0,20737.0,1.02236306]
[1673746742136,0.17666,20743.0,20737.0,0.97136306]
[1673746742137,0.3044477,20740.0,20737.0,0.97136306]
[1673746742414,0.003,20739.0,20737.0,1.02636306]
[1673746743239,0.23320836,20741.0,20738.0,0.94909785]
[1673746743729,0.003,20742.0,20738.0,0.94909785]
[1673746743977,0.737428,20744.0,20738.0,0.94909785]
[1673746743978,0.23385275,20743.0,20738.0,1.06863931]
[1673746744227,0.003,20739.0,20738.0,0.94909785]
[1673746744485,0.003,20739.0,20738.0,1.22432885]
[1673746744735,1.039758,20744.0,20738.0,1.16932885]
[1673746744736,0.29672912,20742.0,20738.0,1.16932885]
[1673746744992,0.29672912,20742.0,20738.0,1.12363931]
[1673746745258,0.29672912,20742.0,20739.0,0.35427756]
[1673746746013,0.29672912,20742.0,20737.0,1.47047098]
[1673746746014,0.56635507,20742.0,20737.0,1.47047098]
[1673746746240,0.06674,20739.0,20738.0,0.055]
[1673746746499,0.06374,20739.0,20737.0,0.46434198]
[1673746746744,0.25446595,20739.0,20737.0,0.46434198]
[1673746746984,0.06374,20739.0,20737.0,0.46434198]
[1673746747230,0.06374,20739.0,20737.0,0.51934198]
[1673746747480,0.06374,20739.0,20737.0,0.46434198]
[1673746747724,0.06674,20739.0,20737.0,0.51934198]
[1673746747962,0.06374,20739.0,20737.0,0.46434198]
[1673746748205,0.003,20739.0,20737.0,0.51934198]
[1673746748943,0.0789,20742.0,20738.0,0.11954146]
[1673746749190,0.482078,20744.0,20739.0,0.11954146]
[1673746749191,0.73522799,20744.0,20739.0,0.11954146]
[1673746749457,0.73522799,20744.0,20740.0,0.11954146]
[1673746749673,0.73522799,20744.0,20741.0,0.11954146]
[1673746750176,0.75722799,20744.0,20741.0,0.11954146]
[1673746750449,0.49739859,20746.0,20742.0,0.11954146]
[1673746750685,0.037,20744.0,20743.0,0.41840746]
[1673746750936,0.037,20744.0,20743.0,0.75423829]
[1673746751187,0.037,20744.0,20743.0,1.23632229]
[1673746751684,0.29613356,20746.0,20743.0,1.23632229]
[1673746751913,0.29613356,20746.0,20743.0,1.01615629]
[1673746752165,0.29613356,20746.0,20743.0,0.93745629]
[1673746752415,0.29613356,20746.0,20743.0,1.02645629]
[1673746752416,0.31154238,20745.0,20743.0,1.02645629]
[1673746752656,0.31154238,20745.0,20743.0,0.93745629]
[1673746752906,0.31154238,20745.0,20743.0,1.02645629]
[1673746753164,0.31154238,20745.0,20743.0,0.93745629]
[1673746753416,0.31154238,20745.0,20743.0,1.04045629]
[1673746754969,0.01536959,20746.0,20743.0,1.04045629]
[1673746755197,0.01536959,20746.0,20744.0,0.48519061]
[1673746755735,0.2907148,20746.0,20744.0,0.48519061]
[1673746756238,0.01536959,20746.0,20742.0,0.561507]
[1673746756472,0.50183792,20745.0,20741.0,0.44850052]
[1673746756725,0.50183792,20745.0,20739.0,0.3694]
[1673746756726,0.50560595,20744.0,20739.0,0.3694]
[1673746756976,0.19072595,20743.0,20739.0,0.41487553]
[1673746757222,0.50560595,20742.0,20739.0,0.41487553]
[1673746757473,0.19072595,20742.0,20739.0,0.41487553]
[1673746757983,0.482106,20743.0,20739.0,0.41487553]
[1673746758260,0.67283195,20743.0,20739.0,0.41487553]
[1673746758477,0.482106,20743.0,20740.0,0.3889773]
[1673746758739,0.964198,20743.0,20740.0,0.3889773]
[1673746758983,1.28043738,20743.0,20740.0,0.3889773]
[1673746759224,0.32624428,20742.0,20740.0,0.3889773]
[1673746759702,0.32624428,20742.0,20740.0,0.4699773]
[1673746760670,0.32624428,20742.0,20740.0,0.3889773]
[1673746760904,0.80936628,20742.0,20740.0,0.4699773]
[1673746769418,0.80936628,20742.0,20740.0,0.081]
[1673746769944,0.26246735,20741.0,20740.0,0.081]
[1673746770208,1.13888335,20741.0,20740.0,0.081]
[1673746770995,1.13888335,20741.0,20739.0,0.01252]
[1673746771251,0.82500335,20741.0,20740.0,0.081]
[1673746771500,1.13988335,20741.0,20740.0,0.081]
[1673746776070,1.2838427,20741.0,20740.0,0.081]
[1673746776615,1.34480758,20741.0,20740.0,0.081]
[1673746776880,1.83452108,20741.0,20740.0,0.06837864]
[1673746777194,2.13452108,20741.0,20740.0,0.06837864]
[1673746777611,1.6836322,20741.0,20740.0,0.1879201]
[1673746777884,1.6836322,20741.0,20739.0,0.01252]
[1673746777885,1.95310953,20741.0,20739.0,0.01252]
[1673746778104,1.51325668,20741.0,20740.0,0.005]
[1673746778394,1.98206429,20741.0,20740.0,0.005]
[1673746778646,2.94673212,20741.0,20740.0,0.005]
[1673746778915,2.94673212,20741.0,20739.0,0.01252]
[1673746778916,2.40214709,20741.0,20739.0,0.01252]
[1673746779167,2.40214709,20741.0,20740.0,0.005]
[1673746779168,2.11726709,20741.0,20740.0,0.005]
[1673746779404,2.61849057,20741.0,20739.0,0.01252]
[1673746779647,1.60713109,20741.0,20740.0,0.032]
[1673746779878,2.13637237,20741.0,20739.0,0.01252]
[1673746780093,0.14423919,20740.0,20739.0,0.04452]
[1673746780354,0.31488,20740.0,20739.0,0.04452]
[1673746780599,0.45911919,20740.0,20739.0,0.04452]
[1673746780853,0.45911919,20740.0,20739.0,0.01252]
[1673746781867,0.45911919,20740.0,20739.0,0.48871499]
[1673746781868,0.31488,20740.0,20739.0,0.48871499]
[1673746782098,0.31488,20740.0,20739.0,0.52071499]
[1673746782317,0.31488,20740.0,20739.0,0.48871499]
[1673746782579,0.31688,20740.0,20739.0,0.52071499]
[1673746783332,0.002,20740.0,20739.0,0.52071499]
[1673746783597,0.31688,20740.0,20739.0,0.52071499]
[1673746784627,0.002,20740.0,20739.0,0.52071499]
[1673746784888,0.31688,20740.0,20739.0,0.52071499]
[1673746785145,0.002,20740.0,20739.0,0.52071499]
[1673746792185,0.002,20740.0,20739.0,0.52134951]
[1673746793446,0.67929205,20742.0,20740.0,0.44914668]
[1673746794691,0.53805286,20742.0,20740.0,0.44914668]
[1673746794942,0.85457277,20742.0,20740.0,0.45214668]
[1673746797671,0.028,20742.0,20741.0,0.11954146]
[1673746797929,0.028,20742.0,20741.0,0.92078718]
[1673746798187,0.028,20742.0,20741.0,1.25934059]
[1673746798697,0.028,20742.0,20741.0,1.18014059]
[1673746798948,0.30396529,20744.0,20741.0,1.18014059]
[1673746799204,0.002,20742.0,20741.0,0.95994759]
[1673746799460,0.30396529,20744.0,20741.0,1.18013359]
[1673746799720,0.002,20742.0,20741.0,0.95994759]
[1673746799964,0.002,20742.0,20741.0,1.18013359]
[1673746800222,0.002,20742.0,20741.0,1.24613359]
[1673746800737,0.002,20742.0,20741.0,0.768322]
[1673746800998,0.002,20742.0,20741.0,0.91190459]
[1673746801229,0.23173087,20746.0,20741.0,0.702322]
[1673746801505,0.23173087,20746.0,20741.0,0.77943677]
[1673746801506,0.002,20742.0,20741.0,0.77943677]
[1673746801767,0.001381,20742.0,20741.0,0.76832]
[1673746802035,0.001381,20742.0,20741.0,0.84590259]
[1673746802280,0.23173087,20746.0,20741.0,0.70232]
[1673746802281,0.47611909,20746.0,20741.0,0.70232]
[1673746802530,0.47811909,20746.0,20741.0,0.69271859]
[1673746802749,0.47611909,20746.0,20742.0,0.64749641]
[1673746802999,0.47611909,20746.0,20743.0,0.482088]
[1673746803217,0.25975781,20746.0,20743.0,0.482088]
[1673746803474,0.620438,20746.0,20743.0,0.482088]
[1673746803991,0.40407672,20746.0,20743.0,0.482088]
[1673746804496,0.26175781,20746.0,20743.0,0.549088]
[1673746804748,0.40607672,20746.0,20743.0,0.549088]
[1673746805482,0.40607672,20746.0,20744.0,0.48585229]
[1673746805734,0.3249884,20745.0,20743.0,0.067]
[1673746805992,0.46930731,20745.0,20743.0,0.067]
[1673746806263,0.23373087,20746.0,20743.0,0.43507301]
[1673746806264,0.37804978,20746.0,20743.0,0.43507301]
[1673746806526,0.01736959,20746.0,20744.0,0.19894146]
[1673746806795,0.01736959,20746.0,20745.0,0.220138]
[1673746807047,0.01536959,20746.0,20745.0,0.220138]
[1673746807307,0.01536959,20746.0,20745.0,0.702181]
[1673746807308,0.01736959,20746.0,20745.0,0.702181]
[1673746808076,0.01536959,20746.0,20745.0,0.702181]
[1673746808336,0.04136959,20746.0,20745.0,1.14485667]
[1673746810392,0.04136959,20746.0,20745.0,0.223138]
[1673746810393,0.23209554,20746.0,20745.0,0.223138]
[1673746810641,0.04136959,20746.0,20745.0,0.003]
[1673746810911,0.04136959,20746.0,20745.0,0.40151297]
[1673746811687,0.04136959,20746.0,20745.0,0.62164797]
[1673746812447,0.04136959,20746.0,20745.0,0.40151297]
[1673746814969,0.04136959,20746.0,20745.0,0.62164797]
[1673746816247,0.04136959,20746.0,20745.0,1.11219097]
[1673746816495,0.04136959,20746.0,20745.0,1.11207328]
[1673746817010,0.04136959,20746.0,20745.0,1.10069097]
[1673746817011,0.01536959,20746.0,20745.0,1.10069097]
[1673746817286,0.01636959,20746.0,20745.0,1.13169097]
[1673746817533,0.01636959,20746.0,20745.0,0.64964797]
[1673746817752,0.01636959,20746.0,20745.0,0.61864797]
[1673746818006,0.01636959,20746.0,20745.0,0.64964797]
[1673746819810,0.01636959,20746.0,20745.0,1.13169097]
[1673746820321,0.01636959,20746.0,20745.0,1.133178]
[1673746820574,0.01636959,20746.0,20745.0,1.033178]
[1673746820823,0.01636959,20746.0,20745.0,1.41204246]
[1673746822583,0.01636959,20746.0,20745.0,1.133178]
[1673746823101,0.01636959,20746.0,20745.0,1.212578]
[1673746823882,0.01636959,20746.0,20745.0,1.25115119]
[1673746824131,0.01636959,20746.0,20745.0,1.55115119]
[1673746824385,0.01636959,20746.0,20745.0,1.55107179]
[1673746824960,0.00136959,20746.0,20745.0,1.25107179]
[1673746826552,0.25113992,20750.0,20746.0,0.49344175]
[1673746826777,0.19072595,20749.0,20745.0,0.031]
[1673746827042,0.079,20747.0,20745.0,0.031]
[1673746827303,0.1,20746.0,20743.0,0.44188299]
[1673746827579,0.314969,20745.0,20743.0,0.44188299]
[1673746827861,0.48202,20746.0,20743.0,0.44188299]
[1673746828636,0.66429973,20745.0,20741.0,0.46218017]
[1673746828879,0.314969,20744.0,20741.0,0.46218017]
[1673746829131,0.67279295,20744.0,20741.0,0.46218017]
[1673746829391,0.482067,20744.0,20743.0,0.48091319]
[1673746829650,0.484036,20746.0,20744.0,0.49134152]
[1673746829651,0.482036,20746.0,20744.0,0.49134152]
[1673746829902,0.482001,20747.0,20744.0,0.61088298]
[1673746829903,0.74854173,20747.0,20744.0,0.61088298]
[1673746830666,0.74854173,20747.0,20744.0,0.49134152]
[1673746830930,0.002,20746.0,20744.0,0.56134152]
[1673746831693,0.70336316,20748.0,20745.0,0.40717714]
[1673746831961,0.002,20747.0,20745.0,0.5267186]
[1673746832216,0.27910306,20745.0,20742.0,0.44972462]
[1673746832501,0.50569495,20744.0,20742.0,0.44972462]
[1673746832769,0.19072595,20744.0,20742.0,0.44972462]
[1673746833049,1.24321306,20745.0,20742.0,0.44972462]
[1673746833529,1.24521306,20745.0,20742.0,0.51872462]
[1673746833784,0.28135098,20744.0,20742.0,0.44972462]
[1673746834038,0.76342798,20744.0,20742.0,0.44972462]
[1673746834293,0.28135098,20744.0,20742.0,0.44972462]
[1673746834545,0.482044,20745.0,20742.0,0.44972462]
[1673746834799,0.002,20744.0,20743.0,0.0006344]
[1673746835055,0.27810114,20744.0,20742.0,0.51872462]
[1673746835528,0.27610114,20744.0,20742.0,0.44972462]
[1673746835776,0.27610114,20744.0,20742.0,0.51872462]
[1673746836030,0.27610114,20744.0,20742.0,0.44972462]
[1673746836273,0.27810114,20744.0,20742.0,0.51872462]
[1673746837043,0.002,20744.0,20742.0,0.51872462]
[1673746838563,0.29834895,20744.0,20742.0,0.51872462]
[1673746843282,0.29834895,20744.0,20742.0,0.069]
[1673746843527,0.314969,20743.0,20742.0,0.069]
[1673746843785,0.29834895,20744.0,20742.0,0.069]
[1673746844039,0.23379709,20743.0,20742.0,0.069]
[1673746845056,0.23379709,20743.0,20741.0,0.35581904]
[1673746845319,0.23379709,20743.0,20742.0,0.069]